bitfinex-derivatives/quotes_BTCF0:USTF0_20210706
["timestamp","ask_amount","ask_price","bid_price","bid_amount"]
[1625608743596,0.24057544,33742.0,33740.0,3.8642]
[1625608744078,0.24057544,33742.0,33741.0,0.24057544]
[1625608745280,0.29757544,33742.0,33741.0,0.24057544]
[1625608745704,0.29757544,33742.0,33737.0,0.77691088]
[1625608745705,0.38112543,33742.0,33737.0,0.24057544]
[1625608745823,0.38112543,33742.0,33730.0,0.62117761]
[1625608746004,0.08350234,33740.0,33730.0,0.24057544]
[1625608746125,0.24057544,33731.0,33730.0,0.24057544]
[1625608747025,0.24057544,33731.0,33728.0,0.24057544]
[1625608748299,0.24057544,33731.0,33729.0,0.08653448]
[1625608748412,0.24057544,33731.0,33729.0,0.39576448]
[1625608748530,0.057,33738.0,33729.0,0.39576448]
[1625608748773,0.24057544,33739.0,33729.0,0.30923]
[1625608749010,0.24057544,33739.0,33729.0,0.39574504]
[1625608749131,0.057,33738.0,33729.0,0.39574504]
[1625608749251,0.057,33738.0,33729.0,0.30923]
[1625608749670,0.24057544,33739.0,33729.0,0.30923]
[1625608750211,0.24057544,33742.0,33738.0,0.45906544]
[1625608751291,0.24057544,33742.0,33738.0,4.71486544]
[1625608751651,0.29757544,33742.0,33738.0,4.71486544]
[1625608751831,0.24057544,33742.0,33738.0,4.71486544]
[1625608752071,0.24057544,33742.0,33741.0,0.24057544]
[1625608752312,0.29757544,33742.0,33741.0,0.24057544]
[1625608753814,0.24057544,33742.0,33741.0,0.24057544]
[1625608754174,0.29757544,33742.0,33741.0,0.24057544]
[1625608755617,0.24057544,33742.0,33741.0,0.24057544]
[1625608756996,0.29757544,33742.0,33741.0,0.24057544]
[1625608758742,0.38188031,33742.0,33741.0,0.24057544]
[1625608759043,0.29757544,33742.0,33741.0,0.24057544]
[1625608759463,0.38190484,33742.0,33741.0,0.24057544]
[1625608759764,0.24057544,33742.0,33741.0,0.24057544]
[1625608761086,0.08444747,33746.0,33741.0,0.24057544]
[1625608762172,0.08444747,33746.0,33745.0,0.24057544]
[1625608762351,0.08444747,33746.0,33745.0,0.52202544]
[1625608762952,0.08453545,33748.0,33745.0,0.52202544]
[1625608764093,0.08453954,33747.0,33745.0,0.52202544]
[1625608764213,0.08453954,33747.0,33746.0,0.24057544]
[1625608765598,0.10040861,33747.0,33746.0,0.24057544]
[1625608765718,0.15740861,33747.0,33746.0,0.24057544]
[1625608769507,0.07286907,33747.0,33746.0,0.24057544]
[1625608770768,0.01586907,33747.0,33746.0,0.24057544]
[1625608771910,0.10041486,33747.0,33746.0,0.24057544]
[1625608772089,0.15741486,33747.0,33746.0,0.24057544]
[1625608774675,0.07286907,33747.0,33746.0,0.24057544]
[1625608777258,0.01586907,33747.0,33746.0,0.24057544]
[1625608780507,0.52228885,33747.0,33746.0,0.24057544]
[1625608780625,0.57928885,33747.0,33746.0,0.24057544]
[1625608782309,1.59226226,33747.0,33746.0,0.24057544]
[1625608787232,1.59226226,33747.0,33746.0,4.37657544]
[1625608789092,2.77644452,33747.0,33746.0,4.37657544]
[1625608791076,2.81145218,33747.0,33746.0,4.38028707]
[1625608791498,3.4878291,33747.0,33746.0,4.38028707]
[1625608794142,4.84131723,33747.0,33746.0,4.38028707]
[1625608794565,3.4878291,33747.0,33746.0,4.38028707]
[1625608794865,4.84290564,33747.0,33746.0,4.38028707]
[1625608794984,4.84290564,33747.0,33746.0,0.24428707]
[1625608795583,4.80789798,33747.0,33746.0,0.24428707]
[1625608795824,4.84290733,33747.0,33746.0,0.24428707]
[1625608795944,4.84290733,33747.0,33746.0,0.54909707]
[1625608798474,5.08348277,33747.0,33746.0,0.54909707]
[1625608798714,5.08348277,33747.0,33746.0,0.63636845]
[1625608800636,5.08348277,33747.0,33746.0,0.54909707]
[1625608800815,5.08348277,33747.0,33746.0,0.54538544]
[1625608801358,5.08348277,33747.0,33746.0,0.63266076]
[1625608801597,5.08348277,33747.0,33746.0,0.63637254]
[1625608803520,5.08348277,33747.0,33746.0,0.81094053]
[1625608803639,5.08348277,33747.0,33746.0,0.80722875]
[1625608803761,6.61114116,33747.0,33746.0,0.54538544]
[1625608804360,6.61114116,33747.0,33746.0,0.30481]
[1625608804482,6.84516116,33747.0,33744.0,0.08728658]
[1625608804602,7.0857366,33747.0,33744.0,0.08728658]
[1625608804730,6.27375705,33745.0,33740.0,0.2618988]
[1625608804857,0.057,33744.0,33740.0,0.2618988]
[1625608804970,6.26780338,33741.0,33737.0,0.08730746]
[1625608805160,0.057,33740.0,33737.0,0.08730746]
[1625608805262,0.057,33740.0,33736.0,0.26192362]
[1625608805263,6.26640418,33738.0,33736.0,0.26192362]
[1625608805382,0.057,33737.0,33736.0,0.26192362]
[1625608805562,0.057,33737.0,33732.0,0.26194005]
[1625608805563,6.31686861,33737.0,33732.0,0.26194005]
[1625608805683,3.55239655,33733.0,33732.0,0.26194005]
[1625608805804,9.89804787,33733.0,33732.0,0.08731335]
[1625608805925,11.42115975,33733.0,33731.0,0.26194492]
[1625608806043,11.43702432,33733.0,33732.0,0.0037135]
[1625608806285,11.43702432,33733.0,33731.0,0.26194492]
[1625608806286,11.4720467,33733.0,33731.0,0.08731535]
[1625608806524,5.74863332,33732.0,33729.0,0.261825]
[1625608806704,4.73481397,33730.0,33729.0,0.261825]
[1625608806825,4.79181397,33730.0,33729.0,0.261825]
[1625608807607,4.79181397,33730.0,33727.0,0.26185245]
[1625608807727,4.80768107,33730.0,33727.0,0.26185245]
[1625608807908,4.7314165,33728.0,33725.0,0.69827322]
[1625608808034,0.057,33727.0,33725.0,0.69827322]
[1625608808148,0.057,33727.0,33721.0,0.69846489]
[1625608808149,5.73981547,33726.0,33721.0,0.69846489]
[1625608808270,0.057,33725.0,33721.0,0.69846489]
[1625608808448,4.2204372,33722.0,33720.0,0.6984849]
[1625608808568,0.77872632,33721.0,33720.0,0.6984849]
[1625608808689,3.64364061,33721.0,33717.0,0.6975161]
[1625608808871,4.99083702,33721.0,33715.0,0.69754743]
[1625608809051,1.68318264,33716.0,33715.0,0.69754743]
[1625608809171,3.26138317,33716.0,33713.0,0.69757065]
[1625608809301,4.60631724,33716.0,33713.0,0.69757065]
[1625608809411,4.60631724,33716.0,33709.0,0.69761173]
[1625608809657,4.5502,33709.0,33708.0,0.9612]
[1625608809779,4.86095,33709.0,33708.0,0.9612]
[1625608809901,7.71570771,33709.0,33705.0,0.6977112]
[1625608810135,2.85180536,33706.0,33701.0,0.69777888]
[1625608810315,1.17272882,33702.0,33701.0,0.69777888]
[1625608810434,2.90515142,33702.0,33697.0,0.69783781]
[1625608810563,2.90515142,33702.0,33689.0,1.57013506]
[1625608810564,0.96230176,33698.0,33692.0,0.34763723]
[1625608810736,0.057,33697.0,33692.0,0.34763723]
[1625608810865,0.3905868,33697.0,33690.0,0.34764951]
[1625608811093,0.33340452,33695.0,33688.0,0.34769678]
[1625608811218,0.057,33694.0,33688.0,0.34769678]
[1625608811337,0.39030958,33694.0,33687.0,0.34771816]
[1625608811580,0.33321089,33693.0,33686.0,0.3477271]
[1625608811698,0.057,33692.0,33686.0,0.3477271]
[1625608812060,0.057,33692.0,33685.0,0.34769022]
[1625608812061,0.3899964,33692.0,33685.0,0.34769022]
[1625608812297,0.83289302,33691.0,33684.0,0.3477113]
[1625608812417,0.057,33690.0,33684.0,0.3477113]
[1625608812539,0.72172632,33685.0,33674.0,0.34645706]
[1625608812657,0.057,33684.0,33674.0,0.34645706]
[1625608812844,0.40167,33684.0,33675.0,0.34645982]
[1625608812967,0.40167,33684.0,33676.0,0.34646294]
[1625608813258,0.40167,33684.0,33680.0,5.1215]
[1625608813742,0.34467,33684.0,33680.0,5.46793229]
[1625608813857,0.48115088,33685.0,33680.0,5.46793229]
[1625608813978,0.48115088,33685.0,33683.0,0.34632368]
[1625608814278,0.48115088,33685.0,33684.0,0.69261087]
[1625608814518,0.48115088,33685.0,33683.0,0.69149738]
[1625608814697,0.48115088,33685.0,33684.0,0.48115088]
[1625608814877,0.48115088,33685.0,33684.0,1.17264035]
[1625608814999,0.48115088,33685.0,33684.0,1.51227035]
[1625608815116,0.24057544,33685.0,33684.0,1.51227035]
[1625608815239,0.24057544,33696.0,33684.0,1.51227035]
[1625608815360,0.24057544,33696.0,33686.0,0.69146375]
[1625608815478,0.24057544,33698.0,33687.0,0.34573188]
[1625608815599,0.24057544,33698.0,33691.0,0.34569922]
[1625608815730,0.24057544,33698.0,33691.0,0.66100922]
[1625608815899,0.24057544,33698.0,33697.0,4.1191]
[1625608816562,0.66420305,33715.0,33697.0,4.1191]
[1625608816683,1.3283929,33716.0,33697.0,4.1191]
[1625608816684,0.24057544,33706.0,33697.0,4.84082632]
[1625608816802,0.24057544,33706.0,33697.0,5.18614986]
[1625608817043,0.24057544,33706.0,33699.0,0.34531621]
[1625608817162,0.24057544,33706.0,33699.0,0.67884621]
[1625608817881,0.24057544,33706.0,33700.0,0.34529484]
[1625608818303,0.24057544,33706.0,33699.0,0.33353]
[1625608818721,0.24057544,33706.0,33705.0,0.48115088]
[1625608820286,0.24057544,33716.0,33705.0,0.48115088]
[1625608820764,0.24057544,33716.0,33715.0,0.71731088]
[1625608820884,0.24057544,33716.0,33715.0,4.36181088]
[1625608828577,0.29757544,33716.0,33715.0,4.36181088]
[1625608828997,0.29757544,33716.0,33715.0,0.71731088]
[1625608829178,0.29757544,33716.0,33715.0,0.23616]
[1625608829299,0.29757544,33716.0,33708.0,0.28045]
[1625608829958,0.29757544,33716.0,33709.0,4.6999]
[1625608830258,0.24057544,33716.0,33709.0,4.6999]
[1625608830740,0.24057544,33716.0,33712.0,0.24057544]
[1625608830862,0.29757544,33716.0,33712.0,0.24057544]
[1625608832244,0.24057544,33716.0,33712.0,0.24057544]
[1625608832785,0.24057544,33713.0,33712.0,0.24057544]
[1625608833386,0.24057544,33716.0,33712.0,0.24057544]
[1625608834768,0.24057544,33716.0,33715.0,0.24057544]
[1625608834948,0.24057544,33716.0,33715.0,0.55391544]
[1625608835668,0.24057544,33723.0,33715.0,0.55391544]
[1625608835915,0.24057544,33728.0,33715.0,0.55391544]
[1625608836089,0.33323327,33733.0,33715.0,0.55391544]
[1625608836271,0.33351275,33737.0,33715.0,1.05391544]
[1625608836689,0.057,33736.0,33715.0,1.05391544]
[1625608836810,0.24057544,33729.0,33728.0,5.22317544]
[1625608836929,0.24057544,33729.0,33728.0,5.50881544]
[1625608843182,0.24057544,33732.0,33728.0,5.50881544]
[1625608843303,0.33382538,33737.0,33729.0,0.5]
[1625608843423,0.33390016,33741.0,33729.0,0.5]
[1625608843664,0.33432637,33745.0,33729.0,0.5]
[1625608843784,0.33432637,33745.0,33728.0,5.50881544]
[1625608844323,0.39132637,33745.0,33742.0,3.8462]
[1625608844443,0.39132637,33745.0,33742.0,4.17521]
[1625608844745,0.057,33745.0,33742.0,4.17521]
[1625608844864,0.057,33745.0,33744.0,0.48115088]
[1625608846133,0.33466769,33748.0,33744.0,0.48115088]
[1625608846256,0.33480015,33749.0,33744.0,0.48115088]
[1625608846434,0.33499247,33751.0,33744.0,0.48115088]
[1625608846736,0.33519487,33753.0,33744.0,0.48115088]
[1625608846914,0.33519487,33753.0,33752.0,0.48115088]
[1625608847035,0.33530168,33755.0,33752.0,0.48115088]
[1625608847155,0.33530168,33755.0,33752.0,0.72897088]
[1625608847334,0.33528243,33754.0,33752.0,0.72897088]
[1625608847516,0.39221591,33755.0,33752.0,0.72897088]
[1625608847696,0.33521591,33755.0,33752.0,0.72897088]
[1625608848057,0.33529701,33756.0,33752.0,0.72897088]
[1625608848594,0.33532912,33757.0,33752.0,0.72897088]
[1625608848894,0.33532912,33757.0,33756.0,0.48115088]
[1625608849135,0.33546049,33759.0,33756.0,0.48115088]
[1625608849434,0.33552008,33760.0,33756.0,5.24985088]
[1625608850274,0.15763208,33760.0,33756.0,5.24985088]
[1625608850576,0.67112462,33763.0,33756.0,5.24985088]
[1625608850936,0.67117231,33764.0,33762.0,0.48115088]
[1625608851118,0.67166535,33766.0,33762.0,0.75583088]
[1625608851417,1.00741408,33767.0,33762.0,0.75583088]
[1625608851418,0.67177224,33767.0,33762.0,0.75583088]
[1625608852257,0.67212081,33768.0,33762.0,0.75583088]
[1625608852797,0.67179221,33769.0,33762.0,0.75583088]
[1625608852917,0.67179221,33769.0,33768.0,0.48115088]
[1625608853037,1.00760436,33770.0,33768.0,0.48115088]
[1625608853038,0.67209813,33770.0,33768.0,0.48115088]
[1625608853218,0.67227435,33771.0,33768.0,0.48115088]
[1625608853516,0.6723768,33772.0,33768.0,0.48115088]
[1625608853937,0.6723768,33772.0,33771.0,3.99739]
[1625608854117,0.6724635,33773.0,33771.0,3.99739]
[1625608854479,0.67163843,33774.0,33771.0,3.99739]
[1625608854718,0.057,33775.0,33771.0,3.99739]
[1625608855018,0.057,33775.0,33774.0,0.48115088]
[1625608855559,1.73576628,33775.0,33774.0,0.48115088]
[1625608856578,0.72854008,33775.0,33774.0,0.48115088]
[1625608856998,0.96911552,33775.0,33774.0,0.48115088]
[1625608857780,0.91211552,33775.0,33774.0,0.48115088]
[1625608857900,0.96911552,33775.0,33774.0,0.48115088]
[1625608858018,0.72854008,33775.0,33774.0,0.48115088]
[1625608858139,0.057,33775.0,33774.0,0.48115088]
[1625608858258,0.67148051,33776.0,33774.0,0.48115088]
[1625608858560,0.67100355,33777.0,33774.0,0.48115088]
[1625608858919,0.057,33776.0,33774.0,0.48115088]
[1625608859041,0.67100355,33777.0,33775.0,0.24057544]
[1625608859942,0.72739915,33776.0,33775.0,0.24057544]
[1625608860242,1.73261597,33776.0,33774.0,0.24057544]
[1625608860603,1.67516217,33775.0,33774.0,0.24057544]
[1625608860725,1.73216217,33775.0,33774.0,0.24057544]
[1625608860966,1.97273761,33775.0,33774.0,0.24057544]
[1625608861506,1.97273761,33775.0,33768.0,4.47057544]
[1625608861867,0.67411078,33773.0,33768.0,4.47057544]
[1625608861987,0.057,33772.0,33768.0,4.47057544]
[1625608862949,0.057,33772.0,33763.0,0.24057544]
[1625608862950,0.48115088,33769.0,33763.0,0.24057544]
[1625608863070,0.057,33768.0,33760.0,0.24057544]
[1625608863968,0.48115088,33769.0,33760.0,0.56402544]
[1625608864390,0.53815088,33769.0,33760.0,0.56402544]
[1625608864994,0.24057544,33761.0,33760.0,0.80460088]
[1625608865112,0.53815088,33769.0,33760.0,0.80460088]
[1625608865474,0.48115088,33769.0,33760.0,0.80460088]
[1625608866195,0.057,33772.0,33760.0,0.80460088]
[1625608867037,0.057,33772.0,33770.0,0.24057544]
[1625608867939,0.057,33772.0,33767.0,0.24057544]
[1625608869020,0.24057544,33768.0,33767.0,0.24057544]
[1625608869141,0.29757544,33768.0,33767.0,0.24057544]
[1625608872264,0.057,33768.0,33767.0,0.24057544]
[1625608874368,0.057,33773.0,33767.0,0.24057544]
[1625608874489,0.057,33773.0,33767.0,0.49895544]
[1625608875028,0.057,33773.0,33772.0,0.24057544]
[1625608875630,0.07294771,33773.0,33772.0,0.24057544]
[1625608876234,0.01594771,33773.0,33772.0,5.20787544]
[1625608876479,0.057,33776.0,33772.0,5.20787544]
[1625608877017,0.0159465,33775.0,33772.0,5.20787544]
[1625608877255,0.24057544,33778.0,33772.0,5.20787544]
[1625608877377,0.29757544,33778.0,33772.0,5.20787544]
[1625608878699,0.01602904,33777.0,33772.0,5.20787544]
[1625608879063,0.01602904,33777.0,33776.0,0.24057544]
[1625608879185,0.01602904,33777.0,33776.0,0.47403544]
[1625608885802,0.24057544,33778.0,33776.0,0.47403544]
[1625608888027,0.73715774,33782.0,33776.0,0.47403544]
[1625608888506,0.01602986,33781.0,33776.0,0.47403544]
[1625608888629,0.69658718,33781.0,33776.0,0.47403544]
[1625608889107,0.01603007,33780.0,33779.0,0.24057544]
[1625608889228,0.07303007,33780.0,33779.0,0.24057544]
[1625608890429,0.75398272,33780.0,33779.0,0.24057544]
[1625608892356,0.07303007,33780.0,33779.0,0.24057544]
[1625608892597,0.75303603,33780.0,33779.0,0.24057544]
[1625608894638,1.774307,33780.0,33779.0,0.24057544]
[1625608894997,1.717307,33780.0,33779.0,0.24057544]
[1625608895660,0.69603603,33780.0,33779.0,0.24057544]
[1625608896626,1.72265025,33780.0,33779.0,0.24057544]
[1625608897222,1.77965025,33780.0,33779.0,0.24057544]
[1625608897887,2.97777541,33780.0,33779.0,0.24057544]
[1625608898124,3.49169143,33780.0,33779.0,0.24057544]
[1625608899087,4.86305693,33780.0,33779.0,0.24057544]
[1625608901497,4.89803948,33780.0,33779.0,0.24057544]
[1625608902638,6.44586312,33780.0,33779.0,0.24057544]
[1625608908889,8.17025308,33780.0,33779.0,0.24057544]
[1625608909070,6.44586312,33780.0,33779.0,0.24057544]
[1625608909309,8.17051362,33780.0,33779.0,0.24057544]
[1625608909912,6.44586312,33780.0,33779.0,0.24057544]
[1625608910275,8.17027916,33780.0,33779.0,0.24057544]
[1625608910937,6.44586312,33780.0,33779.0,0.24057544]
[1625608915444,3.02720176,33780.0,33779.0,0.24057544]
[1625608915566,1.65583626,33780.0,33779.0,0.24057544]
[1625608915686,6.47779229,33780.0,33779.0,0.24057544]
[1625608925423,6.44280974,33780.0,33779.0,0.24057544]
[1625608929684,6.47778867,33780.0,33779.0,0.24057544]
[1625608930649,6.44280974,33780.0,33779.0,0.24057544]
[1625608931069,6.47778873,33780.0,33779.0,0.24057544]
[1625608931487,6.71836417,33780.0,33779.0,0.24057544]
[1625608931910,6.71836417,33780.0,33774.0,1.22101812]
[1625608932089,6.36956018,33775.0,33772.0,1.22145644]
[1625608932270,6.36801991,33773.0,33772.0,0.52348133]
[1625608932509,4.87612116,33773.0,33772.0,0.52348133]
[1625608932630,4.8921211,33773.0,33772.0,0.52348133]
[1625608932751,6.44165538,33773.0,33772.0,0.52348133]
[1625608932992,6.44165538,33773.0,33771.0,1.22147563]
[1625608933111,6.38465538,33773.0,33771.0,1.22147563]
[1625608933232,4.82472083,33772.0,33771.0,1.04695634]
[1625608933531,5.32187142,33772.0,33771.0,2.26840288]
[1625608933773,5.32187142,33772.0,33771.0,2.27208386]
[1625608934853,5.32187142,33772.0,33771.0,2.26840288]
[1625608934972,5.32187142,33772.0,33771.0,1.22144654]
[1625608935213,6.87387551,33772.0,33771.0,1.22144654]
[1625608935452,5.32187142,33772.0,33771.0,1.22144654]
[1625608935992,6.87541937,33772.0,33771.0,2.26929332]
[1625608936112,6.93241937,33772.0,33771.0,2.26929332]
[1625608936294,5.37887142,33772.0,33771.0,3.49173129]
[1625608936414,5.37887142,33772.0,33771.0,2.27297443]
[1625608936715,5.37887142,33772.0,33771.0,3.49544042]
[1625608936891,5.37887142,33772.0,33771.0,3.49175931]
[1625608937013,6.93447094,33772.0,33771.0,1.22144654]
[1625608937372,6.93447094,33772.0,33771.0,0.52347709]
[1625608937495,7.17504638,33772.0,33771.0,0.52347709]
[1625608938155,7.17504638,33772.0,33771.0,1.22203117]
[1625608938274,7.11804638,33772.0,33771.0,1.22203117]
[1625608938395,7.11804638,33772.0,33771.0,2.26983188]
[1625608938515,7.11804638,33772.0,33771.0,2.56132188]
[1625608938637,5.56244686,33772.0,33771.0,2.56132188]
[1625608939058,5.56244686,33772.0,33771.0,3.78740106]
[1625608940318,5.56244686,33772.0,33771.0,5.18434589]
[1625608941346,4.18402903,33772.0,33771.0,5.18434589]
[1625608941581,4.18402903,33772.0,33771.0,5.42492133]
[1625608941821,5.57024734,33772.0,33771.0,5.42492133]
[1625608943024,4.18402903,33772.0,33771.0,5.42492133]
[1625608943269,5.56958017,33772.0,33771.0,5.42492133]
[1625608945551,5.56958017,33772.0,33771.0,4.0279765]
[1625608945913,5.56958017,33772.0,33771.0,5.42495722]
[1625608947297,4.84785385,33772.0,33771.0,5.42495722]
[1625608947536,4.84785385,33772.0,33771.0,5.66553266]
[1625608947658,3.46230271,33772.0,33771.0,5.66553266]
[1625608948256,3.46230271,33772.0,33771.0,4.44350149]
[1625608948379,3.46230271,33772.0,33771.0,5.6657322]
[1625608948918,2.25616557,33772.0,33771.0,5.6657322]
[1625608950063,1.22230913,33772.0,33771.0,7.23692897]
[1625608950239,1.20630942,33772.0,33771.0,7.23692897]
[1625608950783,0.51701436,33772.0,33771.0,7.23692897]
[1625608952107,1.20878526,33772.0,33771.0,7.23692897]
[1625608952347,0.51701436,33772.0,33771.0,7.23692897]
[1625608952827,1.20854908,33772.0,33771.0,7.23692897]
[1625608953972,0.51701436,33772.0,33771.0,7.23692897]
[1625608954272,1.20844002,33772.0,33771.0,7.23692897]
[1625608954452,0.51701436,33772.0,33771.0,7.23692897]
[1625608954692,1.20845629,33772.0,33771.0,7.23692897]
[1625608955175,0.51701436,33772.0,33771.0,7.23692897]
[1625608957399,1.20971342,33773.0,33771.0,7.23692897]
[1625608957639,1.20971342,33773.0,33772.0,6.45936218]
[1625608957879,1.20971342,33773.0,33772.0,4.8890612]
[1625608958721,1.20971342,33773.0,33772.0,6.45912164]
[1625608959202,1.20971342,33773.0,33772.0,4.8890612]
[1625608963653,1.20971342,33773.0,33772.0,6.45886673]
[1625608963770,0.51828156,33773.0,33772.0,6.45886673]
[1625608965514,1.21067488,33774.0,33772.0,6.45886673]
[1625608965694,0.17309244,33773.0,33772.0,1.57348589]
[1625608965935,0.17309244,33773.0,33772.0,6.4565517]
[1625608968821,0.51911218,33773.0,33772.0,6.4565517]
[1625608969121,1.21083485,33774.0,33772.0,6.4565517]
[1625608969362,1.21083485,33774.0,33773.0,4.88333972]
[1625608969483,1.21083485,33774.0,33773.0,4.88701952]
[1625608970984,1.22683362,33774.0,33773.0,4.88701952]
[1625608972367,1.21083485,33774.0,33773.0,4.88701952]
[1625608972487,0.24665845,33775.0,33773.0,4.88701952]
[1625608972610,0.24658719,33777.0,33773.0,5.38701952]
[1625608972791,0.46114512,33777.0,33774.0,4.1852376]
[1625608972909,0.25232712,33777.0,33775.0,0.5]
[1625608973034,0.17339438,33781.0,33776.0,3.46379252]
[1625608973277,0.17339438,33781.0,33780.0,2.96373385]
[1625608973391,0.17339438,33781.0,33780.0,7.89193385]
[1625608973512,0.17342148,33782.0,33780.0,7.89193385]
[1625608973630,0.17342148,33782.0,33781.0,0.72172632]
[1625608973751,0.17342148,33782.0,33781.0,3.68537383]
[1625608973933,0.24057544,33790.0,33781.0,3.68905252]
[1625608974231,0.01599496,33789.0,33782.0,1.5725779]
[1625608974779,0.01599496,33789.0,33781.0,0.72172632]
[1625608974780,0.01599496,33789.0,33783.0,1.57247206]
[1625608975252,1.73247793,33800.0,33784.0,0.00367828]
[1625608975372,1.52747793,33800.0,33784.0,0.00367828]
[1625608975495,0.20817465,33811.0,33784.0,0.00367828]
[1625608975736,0.24057544,33813.0,33810.0,0.13569567]
[1625608975854,0.057,33812.0,33810.0,0.46218567]
[1625608976034,0.10789864,33812.0,33810.0,0.46218567]
[1625608976274,0.05089826,33811.0,33810.0,0.46218567]
[1625608976393,0.05089826,33811.0,33810.0,4.56128567]
[1625608976814,0.01593959,33811.0,33810.0,4.56128567]
[1625608977718,0.25651503,33811.0,33810.0,4.56128567]
[1625608977898,0.31351503,33811.0,33810.0,4.56128567]
[1625608980366,0.31351503,33811.0,33805.0,0.24057544]
[1625608980485,0.31351503,33811.0,33780.0,4.9282]
[1625608980846,0.01599546,33810.0,33781.0,0.00368156]
[1625608981750,0.24057544,33797.0,33796.0,0.24057544]
[1625608981871,0.29757544,33797.0,33796.0,0.24057544]
[1625608983674,0.77872632,33797.0,33786.0,0.24057544]
[1625608983793,1.08481632,33797.0,33786.0,0.24057544]
[1625608983917,5.1154,33794.0,33786.0,0.24057544]
[1625608984093,0.057,33793.0,33786.0,0.24057544]
[1625608984215,0.057,33793.0,33783.0,0.24057544]
[1625608985776,0.48115088,33784.0,33783.0,0.24057544]
[1625608985897,0.2071608,33804.0,33783.0,0.24057544]
[1625608986017,1.21001265,33799.0,33783.0,0.82907544]
[1625608986196,1.72840404,33804.0,33785.0,1.0]
[1625608986319,0.20819485,33823.0,33795.0,1.0]
[1625608986436,0.20819485,33823.0,33796.0,0.5]
[1625608986557,4.67843996,33830.0,33796.0,0.5]
[1625608986558,1.46814841,33830.0,33822.0,3.67180101]
[1625608986680,1.46814841,33830.0,33822.0,3.89413101]
[1625608986862,1.26,33830.0,33822.0,3.89413101]
[1625608987102,0.057,33829.0,33822.0,3.89413101]
[1625608987469,0.057,33829.0,33823.0,0.5]
[1625608987697,1.26,33830.0,33828.0,0.96230176]
[1625608988057,1.34664197,33830.0,33828.0,0.96230176]
[1625608988358,1.2287,33830.0,33828.0,1.0480311]
[1625608988597,1.2112,33830.0,33828.0,0.96230176]
[1625608988718,1.09,33830.0,33828.0,0.96230176]
[1625608988898,1.09,33830.0,33828.0,1.46230176]
[1625608988899,0.772843,33830.0,33828.0,1.46230176]
[1625608989019,0.683643,33830.0,33828.0,1.46230176]
[1625608989138,0.669943,33830.0,33828.0,1.46230176]
[1625608989320,0.005943,33830.0,33828.0,1.54763846]
[1625608989558,0.005943,33830.0,33828.0,1.46230176]
[1625608989739,0.005943,33830.0,33829.0,0.08528385]
[1625608989858,0.005943,33830.0,33829.0,0.33519385]
[1625608989981,0.005943,33830.0,33829.0,0.83519385]
[1625608990399,0.08631912,33844.0,33829.0,0.83519385]
[1625608990521,0.08630555,33850.0,33831.0,0.005943]
[1625608990642,0.08630555,33850.0,33835.0,0.08510729]
[1625608990761,0.08630555,33850.0,33849.0,5.1328]
[1625608990882,0.08630555,33850.0,33849.0,5.43498]
[1625608991181,1.37830487,33856.0,33849.0,5.43498]
[1625608991303,0.08604388,33853.0,33849.0,5.43498]
[1625608991543,0.057,33855.0,33849.0,5.43498]
[1625608991544,0.14304187,33855.0,33849.0,5.43498]
[1625608991725,0.14304187,33855.0,33854.0,0.48115088]
[1625608991846,0.057,33855.0,33854.0,0.48115088]
[1625608992988,0.14302648,33855.0,33854.0,0.48115088]
[1625608993227,0.057,33855.0,33854.0,0.48115088]
[1625608996234,0.057,33856.0,33854.0,0.48115088]
[1625608997856,0.057,33856.0,33852.0,0.25519388]
[1625608998034,0.38964,33856.0,33852.0,0.25519388]
[1625608998334,4.5979,33854.0,33829.0,0.08468485]
[1625608998454,0.057,33853.0,33826.0,0.08476429]
[1625608998755,0.057,33853.0,33825.0,0.08479318]
[1625608999476,0.057,33853.0,33823.0,0.08476669]
[1625608999659,0.057,33853.0,33822.0,0.08481633]
[1625608999775,0.24057544,33833.0,33831.0,0.24057544]
[1625608999896,0.35821,33832.0,33831.0,0.24057544]
[1625609001757,0.59878544,33832.0,33828.0,0.24057544]
[1625609003020,0.54178544,33832.0,33828.0,0.24057544]
[1625609003137,0.24057544,33832.0,33828.0,0.24057544]
[1625609003259,0.24057544,33833.0,33828.0,0.24057544]
[1625609003917,0.24057544,33833.0,33832.0,0.48115088]
[1625609004520,0.24057544,33846.0,33832.0,0.48115088]
[1625609004641,0.2929,33861.0,33832.0,1.09280108]
[1625609004760,0.91561261,33863.0,33833.0,0.5]
[1625609004883,1.36288494,33867.0,33833.0,0.5]
[1625609004884,0.08532402,33870.0,33833.0,0.5]
[1625609005122,0.2929,33878.0,33843.0,1.0]
[1625609005242,0.2929,33878.0,33844.0,0.5]
[1625609005365,0.057,33877.0,33844.0,1.5]
[1625609005481,0.057,33877.0,33876.0,4.6128]
[1625609005604,0.057,33877.0,33876.0,4.89166]
[1625609005849,0.057,33877.0,33876.0,5.37281088]
[1625609005850,0.29757544,33877.0,33876.0,5.37281088]
[1625609007224,0.19653778,33894.0,33876.0,5.37281088]
[1625609007406,0.2929,33895.0,33876.0,5.37281088]
[1625609007885,0.24057544,33893.0,33892.0,0.24057544]
[1625609008246,0.24057544,33893.0,33890.0,0.27564]
[1625609008366,0.24057544,33893.0,33888.0,0.16733505]
[1625609009809,0.24057544,33889.0,33888.0,0.16733505]
[1625609011312,0.24057544,33889.0,33882.0,0.24057544]
[1625609011913,0.24057544,33883.0,33882.0,0.24057544]
[1625609012033,0.24057544,33883.0,33877.0,0.24057544]
[1625609013896,0.24057544,33878.0,33877.0,0.24057544]
[1625609020508,0.24057544,33878.0,33876.0,4.85337544]
[1625609020629,0.50690544,33878.0,33876.0,4.85337544]
[1625609020986,0.50690544,33878.0,33876.0,0.24057544]
[1625609021887,0.24057544,33877.0,33871.0,0.24057544]
[1625609023995,0.24057544,33872.0,33871.0,0.24057544]
[1625609027662,0.24057544,33872.0,33871.0,4.84547544]
[1625609033073,0.2564304,33872.0,33871.0,4.84547544]
[1625609034095,0.49700584,33872.0,33871.0,4.6049]
[1625609034757,0.75039584,33872.0,33867.0,0.24057544]
[1625609035057,0.01585697,33871.0,33867.0,0.24057544]
[1625609036080,0.24057544,33868.0,33867.0,0.24057544]
[1625609036679,0.256432,33868.0,33867.0,0.24057544]
[1625609040049,0.482692,33868.0,33867.0,0.24057544]
[1625609040170,0.482692,33868.0,33862.0,0.24057544]
[1625609040410,0.51758932,33868.0,33862.0,0.24057544]
[1625609040650,0.05076178,33867.0,33862.0,0.24057544]
[1625609042032,0.01586456,33867.0,33862.0,0.24057544]
[1625609042152,0.24057544,33863.0,33862.0,0.48115088]
[1625609042513,0.25643937,33863.0,33862.0,0.48115088]
[1625609044013,0.25643937,33863.0,33862.0,0.56835088]
[1625609044135,0.25643937,33863.0,33862.0,0.48115088]
[1625609044862,0.01586393,33863.0,33862.0,0.48115088]
[1625609045221,0.01586092,33868.0,33862.0,0.48115088]